bitfinex/quotes_BTCUSD_20250326
["timestamp","ask_amount","ask_price","bid_price","bid_amount"]
[1743008831541,5.66238779,86875.0,86874.0,0.00076431]
[1743008831993,5.79442779,86875.0,86874.0,0.00076431]
[1743008832898,5.84923256,86875.0,86874.0,0.00076431]
[1743008833607,5.85471256,86875.0,86874.0,0.00076431]
[1743008834716,5.70313171,86875.0,86874.0,0.00076431]
[1743008834946,5.82141546,86875.0,86874.0,0.00076431]
[1743008835177,5.83473171,86875.0,86874.0,0.00076431]
[1743008835448,5.61611546,86875.0,86874.0,0.00076431]
[1743008835640,5.68667446,86875.0,86874.0,0.00076431]
[1743008835865,5.69971151,86875.0,86874.0,0.00076431]
[1743008836127,5.70471151,86875.0,86874.0,0.00076431]
[1743008836597,5.72971151,86875.0,86874.0,0.00076431]
[1743008837358,5.70471151,86875.0,86874.0,0.00076431]
[1743008838022,5.72971151,86875.0,86874.0,0.00076431]
[1743008839011,5.73294776,86875.0,86874.0,0.00076431]
[1743008842171,5.73314776,86875.0,86874.0,0.00076431]
[1743008842852,5.51947971,86875.0,86874.0,0.00076431]
[1743008844800,5.53402056,86875.0,86874.0,0.00076431]
[1743008845068,0.79117256,86875.0,86874.0,0.00076431]
[1743008845286,5.79117256,86875.0,86874.0,0.00076431]
[1743008845709,5.8092101,86875.0,86874.0,0.00076431]
[1743008846381,5.8146901,86875.0,86874.0,0.00076431]
[1743008846849,5.6727771,86875.0,86874.0,0.00076431]
[1743008849193,5.6727771,86875.0,86874.0,0.00030545]
[1743008851273,0.241767,86860.0,86839.0,0.0823]
[1743008851511,5.673727,86860.0,86859.0,0.00076144]
[1743008852204,5.69176688,86860.0,86859.0,0.00076144]
[1743008852724,5.69676688,86860.0,86859.0,0.00076144]
[1743008852935,5.74811746,86860.0,86859.0,0.00076144]
[1743008853159,5.74311746,86860.0,86859.0,0.00076144]
[1743008853831,5.74811746,86860.0,86859.0,0.00076144]
[1743008855806,5.63419749,86860.0,86859.0,0.00076144]
[1743008856051,5.76611749,86860.0,86859.0,0.00076144]
[1743008856975,0.76611749,86860.0,86859.0,0.00076144]
[1743008857196,0.3,86847.0,86839.0,0.0823]
[1743008857432,0.3,86845.0,86839.0,0.08272506]
[1743008857885,0.3,86843.0,86839.0,0.08272506]
[1743008858110,0.3,86841.0,86839.0,0.08272506]
[1743008858337,4.272618,86840.0,86839.0,0.08272506]
[1743008858591,4.213757,86840.0,86839.0,0.08272506]
[1743008859364,4.27814746,86840.0,86839.0,0.08272506]
[1743008860084,4.28014746,86840.0,86839.0,0.08272506]
[1743008861336,3.77671646,86840.0,86839.0,0.08272506]
[1743008861605,2.35892146,86840.0,86839.0,0.08272506]
[1743008862846,1.318614,86840.0,86839.0,0.08272506]
[1743008864922,1.33665425,86840.0,86839.0,0.08272506]
[1743008865158,0.02204025,86840.0,86839.0,0.37161481]
[1743008865385,0.27688768,86860.0,86858.0,0.011513]
[1743008865641,0.0001694,86869.0,86865.0,0.230242]
[1743008865642,0.34127814,86868.0,86865.0,0.230242]
[1743008865877,0.50589084,86866.0,86865.0,0.310642]
[1743008866091,0.99781984,86866.0,86865.0,0.310642]
[1743008866320,0.44519684,86866.0,86865.0,0.310642]
[1743008867054,0.642429,86866.0,86865.0,0.310642]
[1743008867275,0.642429,86866.0,86865.0,0.0804]
[1743008867524,0.646429,86866.0,86865.0,0.0804]
[1743008867740,0.646429,86866.0,86865.0,0.0784]
[1743008868372,0.650429,86866.0,86865.0,0.0784]
[1743008870009,0.66846468,86866.0,86865.0,0.0784]
[1743008870946,0.66863408,86866.0,86865.0,0.0784]
[1743008872612,0.6505984,86866.0,86865.0,0.0784]
[1743008873735,0.66863409,86866.0,86865.0,0.0784]
[1743008875610,0.32620509,86866.0,86865.0,0.0784]
[1743008876092,0.99961509,86866.0,86865.0,0.308642]
[1743008876332,0.32620509,86866.0,86865.0,0.36891775]
[1743008876557,0.02620509,86866.0,86865.0,0.36891775]
[1743008877581,0.02220509,86866.0,86865.0,0.36891775]
[1743008878229,0.01820509,86866.0,86865.0,0.36891775]
[1743008879686,0.0001694,86869.0,86868.0,0.37140875]
[1743008879948,0.10317249,86881.0,86880.0,0.37137575]
[1743008880180,0.1,86894.0,86882.0,0.241706]
[1743008880181,0.3,86889.0,86882.0,0.241706]
[1743008880404,0.27688768,86890.0,86882.0,0.322306]
[1743008880884,0.01820027,86883.0,86882.0,0.322306]
[1743008881122,0.0001694,86883.0,86882.0,0.32273106]
[1743008881380,0.0001694,86883.0,86882.0,0.32173106]
[1743008882035,0.0011694,86883.0,86882.0,0.32173106]
[1743008882459,0.0021694,86883.0,86882.0,0.32173106]
[1743008882687,0.0021694,86883.0,86882.0,0.43193759]
[1743008882909,0.0011694,86883.0,86882.0,0.47963759]
[1743008883131,0.0021694,86883.0,86882.0,0.47963759]
[1743008883365,0.0021694,86883.0,86882.0,0.37119481]
[1743008883609,0.0021694,86883.0,86882.0,0.38573566]
[1743008883863,8e-07,86885.0,86884.0,0.2580046]
[1743008884112,8e-07,86885.0,86884.0,0.49716224]
[1743008884351,8e-07,86885.0,86884.0,0.3829046]
[1743008885283,8e-07,86885.0,86884.0,0.3859046]
[1743008891236,0.0180289,86885.0,86884.0,0.3859046]
[1743008892309,0.0180289,86885.0,86884.0,0.5170246]
[1743008894356,0.0181983,86885.0,86884.0,0.5170246]
[1743008894579,0.0181983,86885.0,86884.0,0.5551944]
[1743008895902,0.0181983,86885.0,86884.0,0.5170246]
[1743008905894,0.0001702,86885.0,86884.0,0.5170246]
[1743008907521,0.0001702,86885.0,86884.0,0.5173634]
[1743008909313,0.01819838,86885.0,86884.0,0.5173634]
[1743008912793,0.0001702,86885.0,86884.0,0.5173634]
[1743008913255,0.0001702,86885.0,86884.0,0.3862434]
[1743008914632,0.0001702,86885.0,86884.0,0.50050104]
[1743008914854,2e-07,86885.0,86884.0,0.50050104]
[1743008916345,0.01802828,86885.0,86884.0,0.50050104]
[1743008917892,0.01802828,86885.0,86884.0,1.09830104]
[1743008918489,0.01802828,86885.0,86884.0,0.9840434]
[1743008922778,2e-07,86885.0,86884.0,0.9840434]
[1743008926232,0.01802842,86885.0,86884.0,0.9840434]
[1743008930197,2e-07,86885.0,86884.0,0.9840434]
[1743008931718,2e-07,86885.0,86884.0,1.4005434]
[1743008935251,2e-07,86885.0,86884.0,1.3508434]
[1743008935708,2e-07,86885.0,86884.0,1.2593388]
[1743008935971,2e-07,86885.0,86884.0,1.26110255]
[1743008936627,0.01802883,86885.0,86884.0,1.26110255]
[1743008938658,0.01802883,86885.0,86884.0,1.25810255]
[1743008939105,0.01802883,86885.0,86884.0,1.26010255]
[1743008940014,0.03958466,86885.0,86884.0,1.26010255]
[1743008940235,0.03958466,86885.0,86884.0,0.00410255]
[1743008940458,0.03958466,86885.0,86884.0,0.00210255]
[1743008940900,0.01802883,86885.0,86884.0,0.00310255]
[1743008941146,0.01802883,86885.0,86884.0,0.24480255]
[1743008941955,2e-07,86885.0,86884.0,0.24480255]
[1743008942199,2e-07,86885.0,86884.0,0.24380255]
[1743008942459,2e-07,86885.0,86884.0,0.24480255]
[1743008945481,2e-07,86885.0,86884.0,0.00310255]
[1743008945717,2e-07,86885.0,86884.0,0.24480255]
[1743008945949,2e-07,86885.0,86884.0,0.0013388]
[1743008946192,0.01802996,86885.0,86884.0,0.0013388]
[1743008946421,2.34422696,86885.0,86884.0,0.0013388]
[1743008946663,2.34754396,86885.0,86884.0,0.0013388]
[1743008947133,2.3690778,86885.0,86884.0,0.0013388]
[1743008947590,2.3690778,86885.0,86884.0,0.0003388]
[1743008948057,1.3933308,86885.0,86884.0,0.0003388]
[1743008948791,1.3953308,86885.0,86884.0,0.0003388]
[1743008949030,1.6370288,86885.0,86884.0,0.0003388]
[1743008949258,1.6959288,86885.0,86884.0,0.0003388]
[1743008949997,0.541708,86881.0,86880.0,0.0032]
[1743008950258,0.541708,86881.0,86880.0,0.00362284]
[1743008950259,5.600608,86881.0,86880.0,0.00362284]
[1743008950503,5.642408,86881.0,86880.0,0.00362284]
[1743008950982,3.999365,86881.0,86880.0,0.00362284]
[1743008951243,4.229564,86881.0,86880.0,0.00362284]
[1743008951471,0.773248,86881.0,86880.0,0.00362284]
[1743008951700,5.8641723,86881.0,86880.0,0.00362284]
[1743008952270,5.8691723,86881.0,86880.0,0.00362284]
[1743008952972,5.8641723,86881.0,86880.0,0.00362284]
[1743008953142,5.8691723,86881.0,86880.0,0.00362284]
[1743008954163,5.8691723,86881.0,86880.0,0.00396164]
[1743008955522,5.88720619,86881.0,86880.0,0.00396164]
[1743008956186,4.97286019,86881.0,86880.0,0.00396164]
[1743008956488,3.77231719,86881.0,86880.0,0.00396164]
[1743008956701,3.70792673,86881.0,86880.0,0.00396164]
[1743008957524,3.71943573,86881.0,86880.0,0.00396164]
[1743008961161,3.7837785,86881.0,86880.0,0.00396164]
[1743008962011,0.7864985,86881.0,86880.0,0.00396164]
[1743008962216,5.7864985,86881.0,86880.0,0.00396164]
[1743008962553,5.72215573,86881.0,86880.0,0.00396164]
[1743008962983,5.70412184,86881.0,86880.0,0.00396164]
[1743008963639,5.76846461,86881.0,86880.0,0.00396164]
[1743008964552,5.65118661,86881.0,86880.0,0.00396164]
[1743008964759,0.3,86870.0,86865.0,0.0003388]
[1743008964983,0.3,86868.0,86865.0,0.00046969]
[1743008965193,0.3,86866.0,86865.0,0.00046969]
[1743008965373,2.388586,86866.0,86865.0,0.00046969]
[1743008965549,2.391009,86866.0,86865.0,0.00046969]
[1743008965774,2.40904348,86866.0,86865.0,0.00046969]
[1743008966010,2.01866648,86866.0,86865.0,0.00046969]
[1743008966208,2.04020032,86866.0,86865.0,0.00046969]
[1743008966586,1.95285432,86866.0,86865.0,0.00046969]
[1743008966764,1.95485432,86866.0,86865.0,0.00046969]
[1743008967533,1.93332048,86866.0,86865.0,0.00046969]
[1743008967985,1.93532048,86866.0,86865.0,0.00046969]
[1743008969419,0.50464848,86866.0,86865.0,0.31297544]
[1743008969647,0.18578048,86866.0,86865.0,0.31297544]
[1743008970097,0.02203448,86866.0,86865.0,0.32448744]
[1743008970336,0.02203448,86866.0,86865.0,0.37208744]
[1743008970566,0.32203448,86866.0,86865.0,0.36057544]
[1743008970778,1.48616948,86866.0,86865.0,0.37208744]
[1743008971000,0.32203448,86866.0,86865.0,0.37208744]
[1743008971224,0.48616948,86866.0,86865.0,0.37208744]
[1743008971662,0.02203448,86866.0,86865.0,0.37208744]
[1743008972787,0.004,86866.0,86865.0,0.37208744]
[1743008975785,0.02203395,86866.0,86865.0,0.37208744]
[1743008979031,0.55227295,86866.0,86865.0,0.00046969]
[1743008979264,2.95861995,86866.0,86865.0,0.00046969]
[1743008981190,2.71686995,86866.0,86865.0,0.00046969]
[1743008981410,0.56816795,86866.0,86865.0,0.00046969]
[1743008982339,0.79840695,86866.0,86865.0,0.00046969]
[1743008982566,0.56816795,86866.0,86865.0,0.00046969]
[1743008982794,0.550134,86866.0,86865.0,0.00046969]
[1743008983033,0.791884,86866.0,86865.0,0.00046969]
[1743008984645,0.54575,86866.0,86865.0,0.00046969]
[1743008984934,5.54575,86866.0,86865.0,0.00046969]
[1743008985274,5.54175,86866.0,86865.0,0.00046969]
[1743008985523,5.61309277,86866.0,86865.0,0.00046969]
[1743008985729,5.63112919,86866.0,86865.0,0.00046969]
[1743008986116,5.62712919,86866.0,86865.0,0.00046969]
[1743008986334,5.63112919,86866.0,86865.0,0.00046969]
[1743008986578,5.57373719,86866.0,86865.0,0.00046969]
[1743008987226,5.31758719,86866.0,86865.0,0.00046969]
[1743008987449,5.07427719,86866.0,86865.0,0.00046969]
[1743008992803,5.05624077,86866.0,86865.0,0.00046969]
[1743008995956,5.07427949,86866.0,86865.0,0.00046969]
[1743009000646,5.07751574,86866.0,86865.0,0.00046969]
[1743009001550,5.07451574,86866.0,86865.0,0.00046969]
[1743009002003,5.07951574,86866.0,86865.0,0.00046969]
[1743009002501,5.07551574,86866.0,86865.0,0.00046969]
[1743009002721,5.08051574,86866.0,86865.0,0.00046969]
[1743009002943,5.06247702,86866.0,86865.0,0.00046969]
[1743009003645,5.08747702,86866.0,86865.0,6.9e-07]
[1743009003884,0.75956987,86866.0,86865.0,6.9e-07]
[1743009004360,0.75956987,86866.0,86839.0,0.0003388]
[1743009004361,0.541823,86840.0,86839.0,0.0003388]
[1743009004603,0.672703,86840.0,86839.0,0.00046924]
[1743009004813,5.672703,86840.0,86839.0,0.00046924]
[1743009005934,5.55986422,86840.0,86839.0,0.00046924]
[1743009006127,5.69074422,86840.0,86839.0,0.00046924]
[1743009006659,5.69474422,86840.0,86839.0,0.00046924]
[1743009007764,5.69774422,86840.0,86839.0,0.00046924]
[1743009008079,5.76215276,86840.0,86839.0,0.00046924]
[1743009008742,0.76215276,86840.0,86839.0,0.00046924]
[1743009008940,5.76215276,86840.0,86839.0,0.00046924]
[1743009010629,3.26615376,86840.0,86839.0,0.00046924]
[1743009010883,2.92583276,86840.0,86839.0,0.07866924]
[1743009011104,1.16362022,86840.0,86839.0,0.35738024]
[1743009011339,1.16362022,86840.0,86839.0,0.12706924]
[1743009012266,1.15962022,86840.0,86839.0,0.12706924]
[1743009012492,1.15662022,86840.0,86839.0,0.12706924]
[1743009012769,1.16362022,86840.0,86839.0,0.12706924]
[1743009014790,0.24753722,86840.0,86839.0,0.37065899]
[1743009015001,0.54753722,86840.0,86839.0,0.37065899]
[1743009015826,0.54353722,86840.0,86839.0,0.37065899]
[1743009016000,0.54453722,86840.0,86839.0,0.37065899]
[1743009016210,0.54153722,86840.0,86839.0,0.37065899]
[1743009016407,0.54053722,86840.0,86839.0,0.37065899]
[1743009016621,0.31804122,86840.0,86839.0,0.37065899]
[1743009017791,0.01804122,86840.0,86839.0,0.45045168]
[1743009018052,0.01804122,86840.0,86839.0,0.38519984]
[1743009018283,0.27664594,86860.0,86859.0,0.24353375]
[1743009018495,0.3,86866.0,86865.0,0.00176375]
[1743009018680,1.009572,86866.0,86865.0,0.24351775]
[1743009019010,0.95547942,86866.0,86865.0,0.24351775]
[1743009019254,0.95547942,86866.0,86865.0,0.32561775]
[1743009019255,0.65547942,86866.0,86865.0,0.32561775]
[1743009019457,0.01803642,86866.0,86865.0,0.32561775]
[1743009019684,0.01803642,86866.0,86865.0,0.37321775]
[1743009019919,0.02103642,86866.0,86865.0,0.37321775]
[1743009020635,0.01803642,86866.0,86865.0,0.37321775]
[1743009021812,0.02203642,86866.0,86865.0,0.37321775]
[1743009022252,0.01803642,86866.0,86865.0,0.37321775]
[1743009022964,1.36869942,86866.0,86865.0,0.1297]
[1743009023208,1.00594542,86866.0,86865.0,0.13146375]
[1743009023451,0.987909,86866.0,86865.0,0.13146375]
[1743009024337,0.987909,86866.0,86865.0,0.1297]
[1743009024549,0.987909,86866.0,86865.0,0.13146375]
[1743009024979,0.988909,86866.0,86865.0,0.13146375]
[1743009025939,0.99942,86866.0,86865.0,0.13146375]
[1743009026179,1.00042,86866.0,86865.0,0.13146375]
[1743009026340,0.990909,86866.0,86865.0,0.13146375]
[1743009026539,1.232659,86866.0,86865.0,0.0821]
[1743009026770,0.541756,86864.0,86863.0,0.00176375]
[1743009026988,4.141066,86864.0,86863.0,0.00176375]
[1743009027184,2.056666,86864.0,86863.0,0.00176375]
[1743009027589,2.07470238,86864.0,86863.0,0.00176375]
[1743009027992,2.07470238,86864.0,86860.0,0.0813]
[1743009027993,0.541764,86861.0,86860.0,0.0813]
[1743009028202,3.998729,86861.0,86860.0,0.0813]
[1743009028402,0.230259,86859.0,86856.0,0.0478]
[1743009028742,0.530255,86860.0,86856.0,0.0478]
[1743009028743,1.167845,86858.0,86856.0,0.0478]
[1743009028947,0.3,86858.0,86857.0,0.241776]
[1743009029154,0.652179,86858.0,86857.0,0.241776]
[1743009029344,0.3,86858.0,86857.0,0.241776]
[1743009029606,0.652179,86858.0,86856.0,0.0478]
[1743009029850,0.548401,86857.0,86856.0,0.278064]
[1743009030090,0.548401,86857.0,86856.0,0.0478]
[1743009030527,0.01803638,86864.0,86856.0,0.0478]
[1743009030528,0.31803638,86864.0,86859.0,0.230256]
[1743009030740,2.779152,86863.0,86862.0,0.230248]
[1743009030944,0.3,86863.0,86862.0,0.31912375]
[1743009032078,0.301,86863.0,86862.0,0.31912375]
[1743009032734,0.301,86863.0,86862.0,0.07736375]
[1743009033028,0.543759,86863.0,86862.0,0.0756]
[1743009033237,3.120611,86863.0,86862.0,0.0756]
[1743009033444,2.84579,86863.0,86862.0,0.0756]
[1743009033895,0.3,86862.0,86858.0,0.00176375]
[1743009034103,0.3,86859.0,86858.0,0.00176375]
[1743009034348,2.264311,86859.0,86856.0,0.129]
[1743009034803,0.3,86857.0,86856.0,0.370779]
[1743009035006,0.416299,86857.0,86856.0,0.370779]
[1743009035224,0.416299,86857.0,86856.0,0.129]
[1743009035443,0.416299,86857.0,86856.0,0.359266]
[1743009035732,0.416299,86857.0,86856.0,0.370779]
[1743009036195,0.416299,86857.0,86856.0,0.359266]
[1743009036428,0.416299,86857.0,86856.0,0.370779]
[1743009036883,0.646562,86857.0,86856.0,0.129]
[1743009037107,0.541776,86857.0,86856.0,0.0822]
[1743009037247,0.31803689,86857.0,86856.0,0.0822]
[1743009037477,3.53597589,86857.0,86856.0,0.0822]
[1743009037697,3.66236789,86857.0,86856.0,0.001]
[1743009038543,3.22919189,86857.0,86856.0,0.001]
[1743009038759,1.90147789,86857.0,86856.0,0.001]
[1743009039270,0.3,86853.0,86850.0,0.230281]
[1743009039516,0.3,86853.0,86749.0,0.0574261]
[1743009039517,0.3,86851.0,86839.0,0.28027824]
[1743009039767,0.3,86849.0,86846.0,0.23205575]
[1743009039974,0.3,86847.0,86844.0,0.07706375]
[1743009040204,0.3,86847.0,86844.0,0.0753]
[1743009040205,0.3,86845.0,86844.0,0.0753]
[1743009040416,0.530295,86845.0,86844.0,0.0753]
[1743009040597,0.541809,86845.0,86844.0,0.0753]
[1743009040809,0.31803853,86845.0,86844.0,0.0753]
[1743009041609,0.31803853,86845.0,86841.0,0.08296375]
[1743009041610,3.61963253,86845.0,86841.0,0.08296375]
[1743009041819,0.582405,86844.0,86843.0,0.24357875]
[1743009042019,0.419302,86844.0,86843.0,0.24357875]
[1743009043853,0.01803853,86845.0,86844.0,0.241812]
[1743009044106,0.01803853,86845.0,86844.0,0.24357575]
[1743009044800,0.01803853,86845.0,86844.0,0.23206175]
[1743009044990,0.01803853,86845.0,86844.0,0.00176375]
[1743009045233,0.01803853,86845.0,86844.0,0.23206175]
[1743009045951,0.01803853,86845.0,86844.0,0.00176375]
[1743009046166,0.01803853,86845.0,86844.0,0.23206175]
[1743009046718,0.01803853,86845.0,86844.0,0.00176375]
[1743009046943,0.01903853,86845.0,86844.0,0.23206175]
[1743009047714,0.01903853,86845.0,86844.0,0.24357575]
[1743009049575,0.31903853,86845.0,86844.0,0.00176375]
[1743009050273,0.31903853,86845.0,86844.0,0.23206175]
[1743009050527,0.31903853,86845.0,86844.0,0.00176375]
[1743009050750,0.01903853,86845.0,86844.0,0.00176375]
[1743009051003,0.01903853,86845.0,86844.0,0.23206175]
[1743009051718,0.01903853,86845.0,86844.0,0.24357575]
[1743009051939,0.001,86845.0,86844.0,0.24357575]
[1743009052160,0.001,86845.0,86844.0,0.32607575]
[1743009052390,0.0011695,86845.0,86844.0,0.32607575]
[1743009053080,0.0001695,86845.0,86844.0,0.32607575]
[1743009053779,0.0001695,86845.0,86844.0,0.32707575]
[1743009055365,0.01820762,86845.0,86844.0,0.32707575]
[1743009057104,0.01820762,86845.0,86844.0,0.3906166]
[1743009057360,6.2e-07,86845.0,86844.0,0.8071166]
[1743009057589,0.0001695,86866.0,86865.0,0.24351775]
[1743009057815,0.0001695,86866.0,86865.0,0.36791775]
[1743009058291,0.01820493,86866.0,86865.0,0.36791775]
[1743009058769,0.01820493,86866.0,86865.0,0.35640575]
[1743009058956,0.01820493,86866.0,86865.0,0.36791775]
[1743009060269,0.54844393,86866.0,86865.0,0.12616375]
[1743009060411,0.31920493,86866.0,86865.0,0.12616375]
[1743009060631,0.31920493,86866.0,86865.0,0.35640575]
[1743009061036,0.31920493,86866.0,86865.0,0.36791775]
[1743009061904,0.3011695,86866.0,86865.0,0.36791775]
[1743009062546,0.5314085,86866.0,86865.0,0.12616375]
[1743009062757,0.9011085,86866.0,86865.0,0.12616375]
[1743009062981,0.6708695,86866.0,86865.0,0.12616375]
[1743009063212,0.6698695,86866.0,86865.0,0.12616375]
[1743009063542,0.6086155,86866.0,86865.0,0.36791775]
[1743009063889,0.6086155,86866.0,86865.0,0.12616375]
[1743009064097,0.6086155,86866.0,86865.0,0.36791775]
[1743009065067,0.62665117,86866.0,86865.0,0.36791775]
[1743009065306,0.31820517,86866.0,86865.0,0.36791775]
[1743009068831,0.89888517,86866.0,86865.0,0.36791775]
[1743009069009,0.31820517,86866.0,86865.0,0.36791775]
[1743009072916,0.3001695,86866.0,86865.0,0.36791775]
[1743009075882,0.31820464,86866.0,86865.0,0.36791775]
[1743009083028,0.3001695,86866.0,86865.0,0.36791775]
[1743009084855,0.0001695,86866.0,86865.0,0.62747624]
[1743009085108,5e-07,86866.0,86865.0,1.04397624]
[1743009086955,0.0010005,86866.0,86865.0,1.04597624]
[1743009087209,0.01903208,86866.0,86865.0,1.04597624]
[1743009087630,0.01803208,86866.0,86865.0,1.04397624]
[1743009087863,0.01903208,86866.0,86865.0,1.04597624]
[1743009088085,0.02003208,86866.0,86865.0,1.04697624]
[1743009088532,0.01903208,86866.0,86865.0,1.04597624]
[1743009088738,0.02003208,86866.0,86865.0,1.04697624]
[1743009090914,8e-08,86866.0,86865.0,1.04697624]
[1743009091151,1e-08,86869.0,86868.0,0.2580496]
[1743009091382,0.0001694,86880.0,86879.0,0.241715]
[1743009091576,0.0001694,86880.0,86879.0,0.33495585]
[1743009092029,0.0001694,86880.0,86879.0,0.3848196]
[1743009092476,0.0001694,86880.0,86879.0,0.3852437]
[1743009092962,0.0001694,86880.0,86879.0,0.38347995]
[1743009093202,0.0001694,86880.0,86879.0,0.24390285]
[1743009093432,0.0001694,86880.0,86879.0,0.24490285]
[1743009093904,0.0001694,86880.0,86879.0,0.24690285]
[1743009094655,0.0001694,86880.0,86879.0,0.24490285]
[1743009095641,0.0001694,86880.0,86879.0,0.24390285]
[1743009095875,0.0001694,86880.0,86879.0,0.24590285]
[1743009096105,0.0001694,86880.0,86879.0,0.24690285]
[1743009096333,0.0001694,86880.0,86879.0,0.24490285]
[1743009096736,0.0001694,86880.0,86879.0,0.24590285]
[1743009097925,0.60801364,86880.0,86879.0,0.2441391]
[1743009098149,0.93918464,86880.0,86879.0,0.2441391]
[1743009098620,0.93918464,86880.0,86879.0,0.0024241]
[1743009098856,1.18089664,86880.0,86879.0,0.0024241]
[1743009100179,1.18089664,86880.0,86879.0,0.0014241]
[1743009100394,1.18189664,86880.0,86879.0,0.0004241]
[1743009100607,1.18389664,86880.0,86879.0,0.0004241]
[1743009102590,1.18289664,86880.0,86879.0,0.0004241]
[1743009102827,1.1678654,86880.0,86879.0,0.0004241]
[1743009103304,2.5927514,86880.0,86879.0,0.0004241]
[1743009103520,2.4275904,86880.0,86879.0,0.0004241]
[1743009103978,2.0868324,86880.0,86879.0,0.0004241]
[1743009104951,2.0983424,86880.0,86879.0,0.0004241]
[1743009105900,2.11637543,86880.0,86879.0,0.0004241]
[1743009106346,1.87466343,86880.0,86879.0,0.2306291]
[1743009106548,2.10486543,86880.0,86879.0,0.0004241]
[1743009106891,2.11637543,86880.0,86879.0,0.0004241]
[1743009112410,0.51947443,86880.0,86879.0,0.2421391]
[1743009112655,0.5014414,86880.0,86879.0,0.2421391]
[1743009112900,0.3051694,86880.0,86879.0,0.32600285]
[1743009113373,0.0051694,86880.0,86879.0,0.32600285]
[1743009113607,0.0001694,86880.0,86879.0,0.3405437]
[1743009114826,0.0001694,86880.0,86879.0,0.3890437]
[1743009115053,0.0011694,86880.0,86879.0,0.8055437]
[1743009115459,0.0001694,86880.0,86879.0,0.8055437]
[1743009115950,0.00786985,86885.0,86884.0,0.33654085]
[1743009116184,0.00786985,86885.0,86884.0,0.75304085]
[1743009116894,0.00786985,86885.0,86884.0,0.7548046]
[1743009117129,0.0258998,86885.0,86884.0,0.7548046]
[1743009117381,0.0258998,86885.0,86884.0,0.87106224]
[1743009117633,8e-07,86885.0,86884.0,0.92016224]
[1743009117889,0.01,86895.0,86894.0,0.24343675]
[1743009118141,0.01,86895.0,86894.0,0.9859776]
[1743009118364,0.01,86895.0,86894.0,1.10023524]
[1743009119485,0.02802755,86895.0,86894.0,1.10023524]
[1743009120145,0.02802755,86895.0,86894.0,1.10323524]
[1743009120497,0.02802755,86895.0,86894.0,1.10423524]
[1743009121175,0.02802755,86895.0,86894.0,0.9899776]
[1743009122412,0.02802755,86895.0,86894.0,1.4064776]
[1743009122604,0.01,86895.0,86894.0,1.4064776]
[1743009123739,0.0101694,86895.0,86894.0,1.4064776]
[1743009124239,0.0101694,86895.0,86894.0,1.5371576]
[1743009124674,0.0101694,86895.0,86894.0,1.34283675]
[1743009125924,0.0101694,86895.0,86894.0,1.34183675]
[1743009126055,0.02819781,86895.0,86894.0,1.34183675]
[1743009126259,0.02819781,86895.0,86894.0,1.34583675]
[1743009126495,0.02819781,86895.0,86894.0,1.34183675]
[1743009126707,0.02819781,86895.0,86894.0,0.83292875]
[1743009126916,0.02819781,86895.0,86894.0,0.60276375]
[1743009127152,0.55835981,86895.0,86894.0,0.60476375]
[1743009127602,1.19112481,86895.0,86894.0,0.60476375]
[1743009127814,0.63229481,86895.0,86894.0,0.60276375]
[1743009128012,0.63229481,86895.0,86894.0,0.59976375]
[1743009128212,0.63229481,86895.0,86894.0,0.82992875]
[1743009128412,0.63329481,86895.0,86894.0,0.82992875]
[1743009128854,0.64480281,86895.0,86894.0,0.598]
[1743009129110,0.87496481,86895.0,86894.0,0.598]
[1743009129433,0.87696481,86895.0,86894.0,0.598]
[1743009129970,0.011509,86883.0,86880.0,0.00176375]
[1743009130206,0.011509,86883.0,86871.0,0.0778]
[1743009130207,0.241712,86880.0,86876.0,0.00176375]
[1743009130627,0.2597439,86880.0,86876.0,0.00176375]
[1743009131019,0.5597439,86880.0,86876.0,0.00176375]
[1743009131251,0.5597439,86880.0,86876.0,0.23197475]
[1743009131741,0.5597439,86880.0,86876.0,0.00176375]
[1743009131988,2.4384369,86880.0,86872.0,0.230221]
[1743009132699,2.408895,86880.0,86873.0,0.230218]
[1743009132891,1.052063,86880.0,86876.0,0.230212]
[1743009133127,0.984392,86880.0,86876.0,0.230212]
[1743009133262,0.984392,86880.0,86877.0,0.23021]
[1743009133489,0.984392,86880.0,86875.0,0.01151]
[1743009133695,0.984392,86880.0,86875.0,0.241724]
[1743009133898,0.74268,86880.0,86878.0,0.230207]
[1743009134127,0.60963,86880.0,86879.0,0.2421391]
[1743009134336,0.3,86880.0,86879.0,0.24390285]
[1743009134983,0.3,86880.0,86879.0,0.32540285]
[1743009136516,0.3,86880.0,86879.0,0.32574145]
[1743009137181,0.31803081,86880.0,86879.0,0.32574145]
[1743009137852,0.31803081,86880.0,86879.0,0.32674145]
[1743009139859,0.31803081,86880.0,86879.0,0.24524145]
[1743009140088,0.31803081,86880.0,86879.0,0.0017627]
[1743009140754,0.54823281,86880.0,86879.0,0.0017627]
[1743009141007,0.54823281,86880.0,86879.0,0.0007627]
[1743009141460,1.15601081,86880.0,86879.0,0.0017627]
[1743009141691,0.80845581,86880.0,86879.0,0.0017627]
[1743009141922,1.03865781,86880.0,86879.0,0.0017627]
[1743009142730,1.020627,86880.0,86879.0,0.0017627]
[1743009143842,0.790425,86880.0,86879.0,0.0017627]
[1743009144064,0.3,86880.0,86879.0,0.24524145]
[1743009147998,0.738534,86880.0,86879.0,0.0017627]
[1743009148347,2.194237,86880.0,86879.0,0.0017627]
[1743009148533,2.250891,86880.0,86879.0,0.0017627]
[1743009148759,2.020689,86880.0,86879.0,0.0017627]
[1743009149180,1.132641,86880.0,86879.0,0.0017627]
[1743009149640,1.132641,86880.0,86879.0,0.2319677]
[1743009150779,0.487961,86880.0,86879.0,0.2319677]
[1743009151787,0.3,86880.0,86879.0,0.2434777]
[1743009151967,0.462251,86880.0,86879.0,0.2434777]
[1743009152434,0.692453,86880.0,86879.0,0.0017627]
[1743009152653,0.703963,86880.0,86879.0,0.0017627]
[1743009153127,0.762863,86880.0,86879.0,0.0017627]
[1743009153345,0.787863,86880.0,86879.0,7e-07]
[1743009153564,0.625612,86880.0,86879.0,7e-07]
[1743009153793,0.541748,86867.0,86865.0,0.0003388]
[1743009154016,5.672428,86867.0,86866.0,0.00076315]
[1743009154717,5.731328,86867.0,86866.0,0.00076315]
[1743009154922,5.779828,86867.0,86866.0,0.00076315]
[1743009155149,5.843821,86867.0,86866.0,0.00076315]
[1743009155815,5.86185946,86867.0,86866.0,0.00076315]
[1743009156264,5.86485946,86867.0,86866.0,0.00076315]
[1743009156482,5.86885946,86867.0,86866.0,0.00076315]
[1743009158896,5.86585946,86867.0,86866.0,0.00076315]
[1743009159106,5.86885946,86867.0,86866.0,0.00076315]
[1743009159332,5.86485946,86867.0,86866.0,0.00076315]
[1743009159579,5.86885946,86867.0,86866.0,0.00076315]